fUST/lending_fUST_20260530
["ID","MTS","AMOUNT","RATE_DAILY","PERIOD"]
[423431993,1780113042000,-500.97527908,8.839e-05,2]
[423431983,1780113042000,-584.65,8.838e-05,2]
[423431984,1780113042000,-501.59529345,8.838e-05,2]
[423431985,1780113042000,-500.0,8.838e-05,2]
[423432032,1780113042000,-500.0,8.839e-05,2]
[423431991,1780113042000,-199.5886521,8.838e-05,2]
[423431987,1780113042000,-500.0,8.838e-05,2]
[423431986,1780113042000,-500.52302768,8.838e-05,2]
[423431988,1780113042000,-502.45648542,8.838e-05,2]
[423431990,1780113042000,-500.0,8.838e-05,2]
[423431994,1780113042000,-500.54116099,8.839e-05,2]
[423432006,1780113042000,-500.25900731,8.839e-05,2]
[423431998,1780113042000,-500.0,8.839e-05,2]
[423431999,1780113042000,-500.0,8.839e-05,2]
[423431996,1780113042000,-500.0,8.839e-05,2]
[423432000,1780113042000,-500.53400338,8.839e-05,2]
[423431995,1780113042000,-500.0,8.839e-05,2]
[423432005,1780113042000,-500.58195449,8.839e-05,2]
[423432002,1780113042000,-500.0,8.839e-05,2]
[423432034,1780113042000,-500.0,8.839e-05,2]
[423432025,1780113042000,-500.52027314,8.839e-05,2]
[423432039,1780113042000,-500.0,8.839e-05,2]
[423432071,1780113042000,-501.62486509,8.839e-05,2]
[423432070,1780113042000,-500.0,8.839e-05,2]
[423432082,1780113042000,-500.90615019,8.841e-05,2]
[423432077,1780113042000,-550.35465854,8.839e-05,2]
[423432076,1780113042000,-500.0,8.839e-05,2]
[423432079,1780113042000,-500.0,8.839e-05,2]
[423432074,1780113042000,-500.30930705,8.839e-05,2]
[423432073,1780113042000,-500.0,8.839e-05,2]
[423432072,1780113042000,-500.0,8.839e-05,2]
[423432080,1780113042000,-500.0,8.841e-05,2]
[423432075,1780113042000,-500.62407722,8.839e-05,2]
[423432078,1780113042000,-1193.2565,8.839e-05,2]
[423432086,1780113042000,-500.0,8.841e-05,2]
[423432083,1780113042000,-500.0,8.841e-05,2]
[423432085,1780113042000,-500.59283035,8.841e-05,2]
[423432091,1780113042000,-500.37628263,8.841e-05,2]
[423432088,1780113042000,-500.49115145,8.841e-05,2]
[423432093,1780113042000,-546.85381814,8.841e-05,2]
[423432090,1780113042000,-500.38151658,8.841e-05,2]
[423432089,1780113042000,-500.0,8.841e-05,2]
[423432092,1780113042000,-500.0,8.841e-05,2]
[423432087,1780113042000,-500.0,8.841e-05,2]
[423432033,1780113042000,-500.0,8.839e-05,2]
[423432096,1780113042000,-500.88178795,8.841e-05,2]
[423432094,1780113042000,-501.04255302,8.841e-05,2]
[423432095,1780113042000,-500.32890451,8.841e-05,2]
[423432098,1780113042000,-501.57128687,8.841e-05,2]
[423432097,1780113042000,-183.1144073,8.841e-05,2]
[423432099,1780113042000,-500.0,8.841e-05,2]
[423432081,1780113042000,-501.01977851,8.841e-05,2]
[423432065,1780113042000,-501.47440408,8.839e-05,2]
[423432084,1780113042000,-500.0,8.841e-05,2]
[423432064,1780113042000,-500.0,8.839e-05,2]
[423432069,1780113042000,-500.0,8.839e-05,2]
[423432038,1780113042000,-500.0,8.839e-05,2]
[423432037,1780113042000,-500.0,8.839e-05,2]
[423432035,1780113042000,-500.0,8.839e-05,2]
[423432036,1780113042000,-500.0,8.839e-05,2]
[423432040,1780113042000,-500.0,8.839e-05,2]
[423432044,1780113042000,-500.56908023,8.839e-05,2]
[423432054,1780113042000,-500.0,8.839e-05,2]
[423432056,1780113042000,-502.33253212,8.839e-05,2]
[423432048,1780113042000,-500.0,8.839e-05,2]
[423432045,1780113042000,-500.0,8.839e-05,2]
[423432043,1780113042000,-500.0,8.839e-05,2]
[423432049,1780113042000,-502.37321147,8.839e-05,2]
[423432052,1780113042000,-500.0,8.839e-05,2]
[423432055,1780113042000,-501.6618017,8.839e-05,2]
[423432046,1780113042000,-500.0,8.839e-05,2]
[423432047,1780113042000,-500.0,8.839e-05,2]
[423432063,1780113042000,-501.55935881,8.839e-05,2]
[423432066,1780113042000,-500.50041139,8.839e-05,2]
[423432062,1780113042000,-500.0,8.839e-05,2]
[423432067,1780113042000,-500.50879741,8.839e-05,2]
[423432058,1780113042000,-500.0,8.839e-05,2]
[423432060,1780113042000,-500.0,8.839e-05,2]
[423432068,1780113042000,-500.0,8.839e-05,2]
[423432061,1780113042000,-500.0,8.839e-05,2]
[423432059,1780113042000,-500.0,8.839e-05,2]
[423432057,1780113042000,-500.0,8.839e-05,2]
[423432053,1780113042000,-500.0,8.839e-05,2]
[423432050,1780113042000,-500.0,8.839e-05,2]
[423432051,1780113042000,-500.0,8.839e-05,2]
[423432124,1780113043000,-285.34268976,8.841e-05,2]
[423432128,1780113043000,-500.0,8.841e-05,2]
[423432127,1780113043000,-504.04995612,8.841e-05,2]
[423432129,1780113043000,-500.0,8.841e-05,2]
[423432131,1780113043000,-500.7217449,8.841e-05,2]
[423432130,1780113043000,-502.51099253,8.841e-05,2]
[423432132,1780113043000,-504.70525504,8.841e-05,2]
[423432137,1780113043000,-500.0,8.841e-05,2]
[423432126,1780113043000,-330.85000053,8.841e-05,2]
[423432136,1780113043000,-500.0,8.841e-05,2]
[423432143,1780113043000,-500.0,8.841e-05,2]
[423432140,1780113043000,-500.0,8.841e-05,2]
[423432142,1780113043000,-342.01162423,8.841e-05,2]
[423432139,1780113043000,-500.0,8.841e-05,2]
[423432141,1780113043000,-542.04914718,8.841e-05,2]
[423432135,1780113043000,-500.0,8.841e-05,2]
[423432144,1780113043000,-500.0,8.841e-05,2]
[423432145,1780113043000,-500.0,8.841e-05,2]
[423432147,1780113043000,-500.0,8.841e-05,2]
[423432148,1780113043000,-500.0,8.841e-05,2]
[423432149,1780113043000,-500.0,8.841e-05,2]
[423432138,1780113043000,-500.0,8.841e-05,2]
[423432134,1780113043000,-500.0,8.841e-05,2]
[423432120,1780113043000,-502.18386137,8.841e-05,2]
[423432125,1780113043000,-504.53435271,8.841e-05,2]
[423432146,1780113043000,-500.0,8.841e-05,2]
[423432109,1780113043000,-500.0,8.841e-05,2]
[423432108,1780113043000,-500.0,8.841e-05,2]
[423432101,1780113043000,-500.0,8.841e-05,2]
[423432107,1780113043000,-500.0,8.841e-05,2]
[423432100,1780113043000,-500.0,8.841e-05,2]
[423432106,1780113043000,-500.0,8.841e-05,2]
[423432103,1780113043000,-500.75275145,8.841e-05,2]
[423432104,1780113043000,-500.0,8.841e-05,2]
[423432105,1780113043000,-500.0,8.841e-05,2]
[423432133,1780113043000,-500.0,8.841e-05,2]
[423432117,1780113043000,-309.62180551,8.841e-05,2]
[423432112,1780113043000,-501.19247836,8.841e-05,2]
[423432114,1780113043000,-500.0,8.841e-05,2]
[423432119,1780113043000,-211.14022913,8.841e-05,2]
[423432115,1780113043000,-500.0,8.841e-05,2]
[423432118,1780113043000,-500.0,8.841e-05,2]
[423432121,1780113043000,-506.66812952,8.841e-05,2]
[423432122,1780113043000,-503.15279632,8.841e-05,2]
[423432111,1780113043000,-502.44848833,8.841e-05,2]
[423432116,1780113043000,-500.0,8.841e-05,2]
[423432123,1780113043000,-501.3584065,8.841e-05,2]
[423432113,1780113043000,-501.57328794,8.841e-05,2]
[423432110,1780113043000,-501.87087957,8.841e-05,2]
[423432150,1780113043000,-500.0,8.841e-05,2]
[423432151,1780113043000,-500.0,8.841e-05,2]
[423432189,1780113043000,-500.0,8.841e-05,2]
[423432190,1780113043000,-500.0,8.841e-05,2]
[423432188,1780113043000,-500.0,8.841e-05,2]
[423432191,1780113043000,-500.0,8.841e-05,2]
[423432194,1780113043000,-500.0,8.841e-05,2]
[423432193,1780113043000,-500.0,8.841e-05,2]
[423432195,1780113043000,-500.0,8.841e-05,2]
[423432196,1780113043000,-500.0,8.841e-05,2]
[423432197,1780113043000,-500.0,8.841e-05,2]
[423432199,1780113043000,-500.0,8.841e-05,2]
[423432198,1780113043000,-500.0,8.841e-05,2]
[423432200,1780113043000,-500.0,8.841e-05,2]
[423432204,1780113043000,-500.0,8.841e-05,2]
[423432203,1780113043000,-500.0,8.841e-05,2]
[423432202,1780113043000,-500.0,8.841e-05,2]
[423432206,1780113043000,-500.0,8.841e-05,2]
[423432207,1780113043000,-500.0,8.841e-05,2]
[423432205,1780113043000,-501.97966563,8.841e-05,2]
[423432209,1780113043000,-500.0,8.841e-05,2]
[423432208,1780113043000,-500.0,8.841e-05,2]
[423432152,1780113043000,-275.36851952,8.841e-05,2]
[423432187,1780113043000,-500.0,8.841e-05,2]
[423432185,1780113043000,-500.0,8.841e-05,2]
[423432201,1780113043000,-500.0,8.841e-05,2]
[423432186,1780113043000,-500.0,8.841e-05,2]
[423432153,1780113043000,-500.0,8.841e-05,2]
[423432184,1780113043000,-500.0,8.841e-05,2]
[423432154,1780113043000,-500.0,8.841e-05,2]
[423432155,1780113043000,-500.0,8.841e-05,2]
[423432156,1780113043000,-500.0,8.841e-05,2]
[423432158,1780113043000,-500.6296141,8.841e-05,2]
[423432161,1780113043000,-500.0,8.841e-05,2]
[423432160,1780113043000,-500.0,8.841e-05,2]
[423432163,1780113043000,-500.0,8.841e-05,2]
[423432162,1780113043000,-500.0,8.841e-05,2]
[423432174,1780113043000,-500.75489992,8.841e-05,2]
[423432157,1780113043000,-500.35829912,8.841e-05,2]
[423432164,1780113043000,-500.0,8.841e-05,2]
[423432182,1780113043000,-500.0,8.841e-05,2]
[423432165,1780113043000,-362.17548523,8.841e-05,2]
[423432179,1780113043000,-500.0,8.841e-05,2]
[423432183,1780113043000,-500.0,8.841e-05,2]
[423432177,1780113043000,-500.0,8.841e-05,2]
[423432181,1780113043000,-500.0,8.841e-05,2]
[423432170,1780113043000,-246.30289034,8.841e-05,2]
[423432168,1780113043000,-500.0,8.841e-05,2]
[423432166,1780113043000,-500.0,8.841e-05,2]
[423432172,1780113043000,-500.0,8.841e-05,2]
[423432248,1780113044000,-500.0,9.111e-05,2]
[423432251,1780113044000,-500.0,9.111e-05,2]
[423432255,1780113044000,-500.0,9.111e-05,2]
[423432253,1780113044000,-500.0,9.111e-05,2]
[423432257,1780113044000,-500.0,9.111e-05,2]
[423432250,1780113044000,-500.0,9.111e-05,2]
[423432241,1780113044000,-500.0,8.841e-05,2]
[423432247,1780113044000,-500.0,9.111e-05,2]
[423432239,1780113044000,-502.81715795,8.841e-05,2]
[423432242,1780113044000,-500.0,8.892e-05,2]
[423432258,1780113044000,-500.0,9.111e-05,2]
[423432238,1780113044000,-500.0,8.841e-05,2]
[423432249,1780113044000,-500.0,9.111e-05,2]
[423432252,1780113044000,-500.0,9.111e-05,2]
[423432269,1780113044000,-500.0,9.112e-05,2]
[423432254,1780113044000,-500.0,9.111e-05,2]
[423432260,1780113044000,-500.0,9.111e-05,2]
[423432271,1780113044000,-500.0,9.112e-05,2]
[423432277,1780113044000,-500.0,9.112e-05,2]
[423432275,1780113044000,-502.03818353,9.112e-05,2]
[423432273,1780113044000,-502.96030742,9.112e-05,2]
[423432259,1780113044000,-500.0,9.111e-05,2]
[423432265,1780113044000,-500.0,9.112e-05,2]
[423432281,1780113044000,-500.0,9.112e-05,2]
[423432279,1780113044000,-501.46516318,9.112e-05,2]
[423432267,1780113044000,-360.73130621,9.112e-05,2]
[423432263,1780113044000,-500.0,9.112e-05,2]
[423432240,1780113044000,-517.6594564,8.841e-05,2]
[423432256,1780113044000,-500.0,9.111e-05,2]
[423432237,1780113044000,-500.0,8.841e-05,2]
[423432213,1780113044000,-500.0,8.841e-05,2]
[423432234,1780113044000,-500.0,8.841e-05,2]
[423432220,1780113044000,-500.0,8.841e-05,2]
[423432219,1780113044000,-500.0,8.841e-05,2]
[423432210,1780113044000,-500.0,8.841e-05,2]
[423432212,1780113044000,-500.0,8.841e-05,2]
[423432211,1780113044000,-500.0,8.841e-05,2]
[423432216,1780113044000,-500.0,8.841e-05,2]
[423432217,1780113044000,-503.74680422,8.841e-05,2]
[423432261,1780113044000,-627.97563358,9.111e-05,2]
[423432215,1780113044000,-500.0,8.841e-05,2]
[423432214,1780113044000,-500.0,8.841e-05,2]
[423432218,1780113044000,-500.76688565,8.841e-05,2]
[423432221,1780113044000,-500.0,8.841e-05,2]
[423432224,1780113044000,-500.0,8.841e-05,2]
[423432223,1780113044000,-234.9709101,8.841e-05,2]
[423432226,1780113044000,-500.0,8.841e-05,2]
[423432225,1780113044000,-186.14130619,8.841e-05,2]
[423432233,1780113044000,-613.27606725,8.841e-05,2]
[423432232,1780113044000,-500.0,8.841e-05,2]
[423432222,1780113044000,-500.0,8.841e-05,2]
[423432230,1780113044000,-500.0,8.841e-05,2]
[423432227,1780113044000,-500.0,8.841e-05,2]
[423432229,1780113044000,-500.0,8.841e-05,2]
[423432228,1780113044000,-500.0,8.841e-05,2]
[423432231,1780113044000,-500.0,8.841e-05,2]
[423432235,1780113044000,-167.71960462,8.841e-05,2]
[423432243,1780113044000,-505.27373146,8.941e-05,2]
[423432245,1780113044000,-500.0,8.941e-05,2]
[423432246,1780113044000,-600.0,8.942e-05,2]
[423432244,1780113044000,-500.0,8.941e-05,2]
[423432236,1780113044000,-500.0,8.841e-05,2]
[423432283,1780113044000,-500.0,9.112e-05,2]
[423432262,1780113044000,-500.0,9.111e-05,2]
[423432288,1780113044000,-500.0,9.112e-05,2]
[423432345,1780113044000,-500.0,9.113e-05,2]
[423432342,1780113044000,-500.0,9.113e-05,2]
[423432343,1780113044000,-500.0,9.113e-05,2]
[423432348,1780113044000,-500.0,9.113e-05,2]
[423432359,1780113044000,-500.0,9.113e-05,2]
[423432352,1780113044000,-500.0,9.113e-05,2]
[423432350,1780113044000,-500.0,9.113e-05,2]
[423432358,1780113044000,-501.25174835,9.113e-05,2]
[423432349,1780113044000,-386.01433159,9.113e-05,2]
[423432355,1780113044000,-500.0,9.113e-05,2]
[423432351,1780113044000,-501.39759113,9.113e-05,2]
[423432347,1780113044000,-500.0,9.113e-05,2]
[423432354,1780113044000,-500.0,9.113e-05,2]
[423432356,1780113044000,-314.51250578,9.113e-05,2]
[423432357,1780113044000,-425.45309444,9.113e-05,2]
[423432360,1780113044000,-500.0,9.113e-05,2]
[423432364,1780113044000,-341.76563281,9.113e-05,2]
[423432365,1780113044000,-500.0,9.113e-05,2]
[423432366,1780113044000,-501.04173609,9.113e-05,2]
[423432362,1780113044000,-500.0,9.113e-05,2]
[423432363,1780113044000,-500.0,9.113e-05,2]
[423432370,1780113044000,-500.0,9.113e-05,2]
[423432371,1780113044000,-501.83170422,9.113e-05,2]
[423432372,1780113044000,-503.28512668,9.113e-05,2]
[423432369,1780113044000,-501.65367755,9.113e-05,2]
[423432361,1780113044000,-539.72829893,9.113e-05,2]
[423432367,1780113044000,-622.79928043,9.113e-05,2]
[423432368,1780113044000,-521.75669352,9.113e-05,2]
[423432286,1780113044000,-500.0,9.112e-05,2]
[423432346,1780113044000,-500.0,9.113e-05,2]
[423432341,1780113044000,-500.40506274,9.113e-05,2]
[423432353,1780113044000,-500.0,9.113e-05,2]
[423432344,1780113044000,-500.0,9.113e-05,2]
[423432340,1780113044000,-501.33597198,9.112e-05,2]
[423432296,1780113044000,-631.31277479,9.112e-05,2]
[423432298,1780113044000,-500.0,9.112e-05,2]
[423432292,1780113044000,-501.16307488,9.112e-05,2]
[423432300,1780113044000,-500.0,9.112e-05,2]
[423432294,1780113044000,-500.0,9.112e-05,2]
[423432302,1780113044000,-501.03485238,9.112e-05,2]
[423432304,1780113044000,-501.88293787,9.112e-05,2]
[423432308,1780113044000,-500.0,9.112e-05,2]
[423432306,1780113044000,-500.81136002,9.112e-05,2]
[423432310,1780113044000,-500.0,9.112e-05,2]
[423432322,1780113044000,-500.0,9.112e-05,2]
[423432320,1780113044000,-491.12289209,9.112e-05,2]
[423432324,1780113044000,-500.72512557,9.112e-05,2]
[423432325,1780113044000,-500.0,9.112e-05,2]
[423432290,1780113044000,-500.0,9.112e-05,2]
[423432327,1780113044000,-220.84118691,9.112e-05,2]
[423432312,1780113044000,-534.78,9.112e-05,2]
[423432339,1780113044000,-500.0,9.112e-05,2]
[423432336,1780113044000,-584.65,9.112e-05,2]
[423432338,1780113044000,-500.0,9.112e-05,2]
[423432335,1780113044000,-500.7579157,9.112e-05,2]
[423432333,1780113044000,-2907.63,9.112e-05,2]
[423432337,1780113044000,-502.35110131,9.112e-05,2]
[423432331,1780113044000,-500.0,9.112e-05,2]
[423432316,1780113044000,-501.02823681,9.112e-05,2]
[423432314,1780113044000,-504.99600671,9.112e-05,2]
[423432318,1780113044000,-500.0,9.112e-05,2]
[423432329,1780113044000,-500.0,9.112e-05,2]
[423432334,1780113044000,-500.0,9.112e-05,2]
[423432422,1780113045000,-346.95488193,9.115e-05,2]
[423432417,1780113045000,-500.0,9.115e-05,2]
[423432416,1780113045000,-500.0,9.115e-05,2]
[423432414,1780113045000,-234.51889064,9.115e-05,2]
[423432404,1780113045000,-338.27197255,9.115e-05,2]
[423432415,1780113045000,-330.2393099,9.115e-05,2]
[423432407,1780113045000,-500.0,9.115e-05,2]
[423432411,1780113045000,-500.0,9.115e-05,2]
[423432406,1780113045000,-500.87886045,9.115e-05,2]
[423432408,1780113045000,-506.54330832,9.115e-05,2]
[423432405,1780113045000,-327.41316345,9.115e-05,2]
[423432420,1780113045000,-503.18883211,9.115e-05,2]
[423432413,1780113045000,-267.24203126,9.115e-05,2]
[423432418,1780113045000,-532.0157853,9.115e-05,2]
[423432437,1780113045000,-500.0,9.115e-05,2]
[423432412,1780113045000,-500.0,9.115e-05,2]
[423432419,1780113045000,-504.28975278,9.115e-05,2]
[423432423,1780113045000,-548.23373266,9.115e-05,2]
[423432425,1780113045000,-500.0,9.115e-05,2]
[423432435,1780113045000,-500.0,9.115e-05,2]
[423432436,1780113045000,-500.0,9.115e-05,2]
[423432427,1780113045000,-500.0,9.115e-05,2]
[423432424,1780113045000,-500.0,9.115e-05,2]
[423432431,1780113045000,-153.52472002,9.115e-05,2]
[423432429,1780113045000,-500.0,9.115e-05,2]
[423432426,1780113045000,-500.0,9.115e-05,2]
[423432432,1780113045000,-500.0,9.115e-05,2]
[423432403,1780113045000,-500.0,9.115e-05,2]
[423432421,1780113045000,-500.0,9.115e-05,2]
[423432402,1780113045000,-152.46540606,9.115e-05,2]
[423432434,1780113045000,-502.49436931,9.115e-05,2]
[423432400,1780113045000,-494.72097139,9.115e-05,2]
[423432374,1780113045000,-501.35580205,9.113e-05,2]
[423432385,1780113045000,-500.0,9.113e-05,2]
[423432384,1780113045000,-500.0,9.113e-05,2]
[423432373,1780113045000,-501.82828563,9.113e-05,2]
[423432375,1780113045000,-500.0,9.113e-05,2]
[423432377,1780113045000,-500.72820552,9.113e-05,2]
[423432381,1780113045000,-500.0,9.113e-05,2]
[423432383,1780113045000,-500.0,9.113e-05,2]
[423432376,1780113045000,-500.0,9.113e-05,2]
[423432379,1780113045000,-501.0314836,9.113e-05,2]
[423432382,1780113045000,-501.05769942,9.113e-05,2]
[423432378,1780113045000,-501.37457544,9.113e-05,2]
[423432380,1780113045000,-500.0,9.113e-05,2]
[423432387,1780113045000,-500.0,9.113e-05,2]
[423432397,1780113045000,-548.29676272,9.115e-05,2]
[423432399,1780113045000,-500.0,9.115e-05,2]
[423432398,1780113045000,-500.0,9.115e-05,2]
[423432386,1780113045000,-500.0,9.113e-05,2]
[423432389,1780113045000,-500.0,9.113e-05,2]
[423432388,1780113045000,-500.0,9.113e-05,2]
[423432391,1780113045000,-502.84998821,9.113e-05,2]
[423432390,1780113045000,-500.0,9.113e-05,2]
[423432393,1780113045000,-500.0,9.113e-05,2]
[423432396,1780113045000,-500.73002022,9.115e-05,2]
[423432392,1780113045000,-500.0,9.113e-05,2]
[423432394,1780113045000,-1193.2565,9.113e-05,2]
[423432395,1780113045000,-500.62957667,9.113e-05,2]
[423432409,1780113045000,-504.83721007,9.115e-05,2]
[423432410,1780113045000,-249.09998126,9.115e-05,2]
[423432401,1780113045000,-500.0,9.115e-05,2]
[423432433,1780113045000,-500.0,9.115e-05,2]
[423432497,1780113045000,-500.0,9.115e-05,2]
[423432428,1780113045000,-500.0,9.115e-05,2]
[423432470,1780113045000,-500.0,9.115e-05,2]
[423432475,1780113045000,-500.0,9.115e-05,2]
[423432474,1780113045000,-568.45532753,9.115e-05,2]
[423432473,1780113045000,-500.0,9.115e-05,2]
[423432471,1780113045000,-500.0,9.115e-05,2]
[423432476,1780113045000,-500.0,9.115e-05,2]
[423432472,1780113045000,-500.0,9.115e-05,2]
[423432478,1780113045000,-536.72050921,9.115e-05,2]
[423432480,1780113045000,-500.0,9.115e-05,2]
[423432490,1780113045000,-500.0,9.115e-05,2]
[423432486,1780113045000,-500.0,9.115e-05,2]
[423432491,1780113045000,-501.87952797,9.115e-05,2]
[423432481,1780113045000,-500.0,9.115e-05,2]
[423432477,1780113045000,-500.0,9.115e-05,2]
[423432479,1780113045000,-500.0,9.115e-05,2]
[423432484,1780113045000,-500.0,9.115e-05,2]
[423432482,1780113045000,-500.0,9.115e-05,2]
[423432492,1780113045000,-500.0,9.115e-05,2]
[423432487,1780113045000,-500.0,9.115e-05,2]
[423432488,1780113045000,-500.0,9.115e-05,2]
[423432485,1780113045000,-502.28001941,9.115e-05,2]
[423432489,1780113045000,-500.0,9.115e-05,2]
[423432493,1780113045000,-500.0,9.115e-05,2]
[423432494,1780113045000,-500.0,9.115e-05,2]
[423432495,1780113045000,-501.00780891,9.115e-05,2]
[423432496,1780113045000,-500.0,9.115e-05,2]
[423432498,1780113045000,-500.0,9.115e-05,2]
[423432430,1780113045000,-500.0,9.115e-05,2]
[423432483,1780113045000,-500.0,9.115e-05,2]
[423432469,1780113045000,-500.0,9.115e-05,2]
[423432499,1780113045000,-502.78158214,9.115e-05,2]
[423432468,1780113045000,-500.0,9.115e-05,2]
[423432438,1780113045000,-500.0,9.115e-05,2]
[423432440,1780113045000,-500.0,9.115e-05,2]
[423432441,1780113045000,-500.0,9.115e-05,2]
[423432443,1780113045000,-500.0,9.115e-05,2]
[423432445,1780113045000,-500.0,9.115e-05,2]
[423432442,1780113045000,-501.98972124,9.115e-05,2]
[423432444,1780113045000,-500.0,9.115e-05,2]
[423432448,1780113045000,-500.83080511,9.115e-05,2]
[423432466,1780113045000,-501.85884426,9.115e-05,2]
[423432446,1780113045000,-500.0,9.115e-05,2]
[423432450,1780113045000,-500.0,9.115e-05,2]
[423432439,1780113045000,-500.0,9.115e-05,2]
[423432449,1780113045000,-504.94302639,9.115e-05,2]
[423432452,1780113045000,-500.0,9.115e-05,2]
[423432447,1780113045000,-507.71452031,9.115e-05,2]
[423432455,1780113045000,-500.0,9.115e-05,2]
[423432467,1780113045000,-500.0,9.115e-05,2]
[423432462,1780113045000,-500.0,9.115e-05,2]
[423432465,1780113045000,-500.0,9.115e-05,2]
[423432460,1780113045000,-500.0,9.115e-05,2]
[423432461,1780113045000,-500.0,9.115e-05,2]
[423432456,1780113045000,-500.0,9.115e-05,2]
[423432459,1780113045000,-500.0,9.115e-05,2]
[423432457,1780113045000,-500.0,9.115e-05,2]
[423432463,1780113045000,-500.0,9.115e-05,2]
[423432454,1780113045000,-500.0,9.115e-05,2]
[423432451,1780113045000,-445.79535104,9.115e-05,2]
[423432453,1780113045000,-500.0,9.115e-05,2]
[423432464,1780113045000,-500.79356014,9.115e-05,2]
[423432458,1780113045000,-500.0,9.115e-05,2]
[423432558,1780113046000,-499.53805496,9.387e-05,2]
[423432544,1780113046000,-2907.63,9.386e-05,2]
[423432560,1780113046000,-500.0,9.387e-05,2]
[423432541,1780113046000,-500.0,9.386e-05,2]
[423432556,1780113046000,-500.0,9.387e-05,2]
[423432539,1780113046000,-500.0,9.386e-05,2]
[423432552,1780113046000,-500.0,9.386e-05,2]
[423432537,1780113046000,-597.7037906,9.386e-05,2]
[423432535,1780113046000,-500.0,9.386e-05,2]
[423432533,1780113046000,-534.78,9.386e-05,2]
[423432534,1780113046000,-500.0,9.386e-05,2]
[423432554,1780113046000,-500.0,9.387e-05,2]
[423432562,1780113046000,-500.0,9.387e-05,2]
[423432568,1780113046000,-500.0,9.387e-05,2]
[423432564,1780113046000,-500.0,9.387e-05,2]
[423432550,1780113046000,-505.57351394,9.386e-05,2]
[423432548,1780113046000,-584.65,9.386e-05,2]
[423432566,1780113046000,-500.0,9.387e-05,2]
[423432577,1780113046000,-160.0,9.387e-05,2]
[423432576,1780113046000,-500.58298145,9.387e-05,2]
[423432567,1780113046000,-500.0,9.387e-05,2]
[423432571,1780113046000,-183.00766591,9.387e-05,2]
[423432575,1780113046000,-500.0,9.387e-05,2]
[423432569,1780113046000,-500.0,9.387e-05,2]
[423432572,1780113046000,-500.0,9.387e-05,2]
[423432574,1780113046000,-500.0,9.387e-05,2]
[423432532,1780113046000,-500.0,9.386e-05,2]
[423432546,1780113046000,-460.85766078,9.386e-05,2]
[423432528,1780113046000,-500.0,9.386e-05,2]
[423432525,1780113046000,-500.0,9.386e-05,2]
[423432531,1780113046000,-500.0,9.386e-05,2]
[423432570,1780113046000,-500.0,9.387e-05,2]
[423432500,1780113046000,-500.0,9.166e-05,2]
[423432501,1780113046000,-500.0,9.215e-05,2]
[423432503,1780113046000,-500.0,9.385e-05,2]
[423432505,1780113046000,-500.0,9.385e-05,2]
[423432504,1780113046000,-500.0,9.385e-05,2]
[423432506,1780113046000,-500.0,9.385e-05,2]
[423432502,1780113046000,-252.63459088,9.215e-05,2]
[423432513,1780113046000,-500.0,9.385e-05,2]
[423432510,1780113046000,-500.0,9.385e-05,2]
[423432511,1780113046000,-500.0,9.385e-05,2]
[423432512,1780113046000,-500.0,9.385e-05,2]
[423432507,1780113046000,-500.0,9.385e-05,2]
[423432529,1780113046000,-613.55018426,9.386e-05,2]
[423432509,1780113046000,-500.0,9.385e-05,2]
[423432526,1780113046000,-500.0,9.386e-05,2]
[423432514,1780113046000,-500.0,9.385e-05,2]
[423432516,1780113046000,-500.0,9.385e-05,2]
[423432517,1780113046000,-500.0,9.386e-05,2]
[423432518,1780113046000,-500.0,9.386e-05,2]
[423432519,1780113046000,-284.13224888,9.386e-05,2]
[423432521,1780113046000,-500.0,9.386e-05,2]
[423432520,1780113046000,-500.0,9.386e-05,2]
[423432522,1780113046000,-500.0,9.386e-05,2]
[423432523,1780113046000,-552.89935702,9.386e-05,2]
[423432524,1780113046000,-590.26240904,9.386e-05,2]
[423432527,1780113046000,-502.13254286,9.386e-05,2]
[423432530,1780113046000,-500.0,9.386e-05,2]
[423432515,1780113046000,-500.0,9.385e-05,2]
[423432573,1780113046000,-244.54586962,9.387e-05,2]